bitfinex/quotes_ETHUSD_20240731
["timestamp","ask_amount","ask_price","bid_price","bid_amount"]
[1722427448104,6.01337,3326.0,3325.9,1.109]
[1722427448305,6.01299,3326.2,3325.9,1.109]
[1722427448528,3.00648,3326.2,3325.9,1.109]
[1722427449463,3.00657,3326.1,3325.9,1.109]
[1722427450091,10.08754128,3326.6,3325.9,4.15801288]
[1722427450092,13.09369128,3326.6,3325.9,4.15801288]
[1722427450294,3.00625,3326.4,3326.3,1.109]
[1722427450491,3.00616,3326.5,3326.3,1.109]
[1722427450818,10.48608,3326.6,3326.4,1.109]
[1722427451582,3.00616,3326.5,3326.4,1.109]
[1722427452181,10.48608,3326.6,3326.4,1.109]
[1722427452182,7.48,3326.6,3326.4,1.109]
[1722427452656,3.00576,3327.0,3326.4,4.46331]
[1722427452805,3.00576,3327.0,3326.9,1.109]
[1722427453514,6.01152,3327.0,3326.9,1.109]
[1722427453719,6.01152,3327.0,3326.7,1.109]
[1722427453720,3.00591,3326.8,3326.7,1.109]
[1722427454925,3.00605,3326.7,3326.5,1.109]
[1722427455525,3.00607,3326.6,3326.5,1.109]
[1722427455826,3.00605,3326.7,3326.5,1.109]
[1722427456258,6.01211,3326.7,3326.5,1.109]
[1722427456567,3.00607,3326.6,3326.5,1.109]
[1722427456918,3.00605,3326.7,3326.5,1.109]
[1722427457255,3.00605,3326.7,3326.5,36.109]
[1722427458253,6.0121,3326.7,3326.5,36.109]
[1722427458473,3.00607,3326.6,3326.5,1.109]
[1722427460054,3.00625,3326.4,3326.3,35.0]
[1722427460256,3.00625,3326.4,3325.7,2.3262]
[1722427460257,3.00665,3326.0,3325.7,2.3262]
[1722427460458,3.0066,3326.1,3325.7,6.3262]
[1722427460778,3.0067,3325.9,3325.8,1.109]
[1722427460928,3.00679,3325.8,3325.7,4.0]
[1722427461130,6.01358,3325.8,3325.7,5.109]
[1722427461320,6.01358,3325.8,3325.7,1.109]
[1722427461558,6.01376,3325.7,3325.6,0.4]
[1722427466535,9.02064,3325.7,3325.6,0.4]
[1722427466979,13.88121497,3325.7,3325.6,0.4]
[1722427467135,16.88121497,3325.7,3325.6,0.4]
[1722427467681,14.27434,3325.7,3325.6,0.4]
[1722427467865,16.37538085,3325.7,3325.6,0.4]
[1722427470483,18.98086077,3325.7,3325.6,0.4]
[1722427470693,16.37538085,3325.7,3325.6,0.4]
[1722427471378,18.9805235,3325.7,3325.6,0.4]
[1722427472792,18.98016687,3325.7,3325.6,0.4]
[1722427475051,16.37538085,3325.7,3325.6,0.4]
[1722427476987,14.12168085,3325.7,3325.6,0.4]
[1722427480303,11.11480085,3325.7,3325.6,0.4]
[1722427480455,9.01376,3325.7,3325.6,0.4]
[1722427480807,3.00688,3325.7,3325.6,0.4]
[1722427480989,3.00676,3325.9,3325.7,2.3561]
[1722427481200,3.00679,3325.8,3325.7,2.3561]
[1722427484271,3.00667,3326.0,3325.7,2.63171]
[1722427484475,3.00667,3326.0,3325.7,2.3561]
[1722427485126,3.0067,3325.9,3325.7,2.3561]
[1722427485424,3.00679,3325.8,3325.7,2.3561]
[1722427486601,3.0,3326.5,3325.7,2.3561]
[1722427486602,3.00663,3326.0,3325.7,2.3561]
[1722427486927,3.00675,3325.9,3325.7,2.3561]
[1722427487227,0.56025665,3326.4,3325.7,2.3561]
[1722427487228,3.00679,3325.8,3325.7,2.3561]
[1722427487379,6.01358,3325.8,3325.7,2.3561]
[1722427492331,3.00688,3325.7,3325.6,1.509]
[1722427493584,3.0068,3325.8,3325.6,1.509]
[1722427494326,3.00667,3326.0,3325.6,1.509]
[1722427494535,3.0067,3325.9,3325.8,1.109]
[1722427496115,3.00667,3326.0,3325.8,1.109]
[1722427496116,3.00662,3326.0,3325.8,1.109]
[1722427496440,3.00662,3326.0,3325.9,2.4592]
[1722427497487,3.0067,3325.9,3325.8,1.109]
[1722427499604,3.00653,3326.1,3325.8,1.109]
[1722427500036,3.00625,3326.4,3326.1,2.3518]
[1722427500244,3.00625,3326.4,3326.2,1.109]
[1722427500796,6.00612,3326.6,3326.2,1.109]
[1722427501002,6.00608,3326.6,3326.4,1.109]
[1722427502313,3.00616,3326.5,3326.4,1.109]
[1722427502517,3.00604,3326.7,3326.4,3.4147]
[1722427502812,3.00604,3326.7,3326.6,1.109]
[1722427504531,6.01208,3326.7,3326.6,1.109]
[1722427505161,3.00607,3326.6,3326.5,0.2]
[1722427505952,6.01214,3326.6,3326.5,0.2]
[1722427506326,6.613354,3326.6,3326.5,0.2]
[1722427507142,6.01214,3326.6,3326.5,0.2]
[1722427508065,6.01214,3326.6,3326.5,0.4]
[1722427508461,3.00607,3326.6,3326.5,2.8632]
[1722427508627,3.00598,3326.7,3326.5,2.8632]
[1722427508822,3.00583,3326.9,3326.6,1.109]
[1722427509166,3.00583,3326.9,3326.8,1.109]
[1722427509577,3.0058,3326.9,3326.8,1.109]
[1722427511469,3.0058,3326.9,3326.5,2.8632]
[1722427511470,3.00604,3326.7,3326.6,1.109]
[1722427512266,6.01174,3326.9,3326.6,1.109]
[1722427512468,3.00591,3326.8,3326.6,1.109]
[1722427516997,3.00598,3326.7,3326.6,1.109]
[1722427519894,2.4655,3327.2,3326.6,1.109]
[1722427520106,3.012587,3327.2,3326.6,1.109]
[1722427521163,3.012587,3327.2,3326.5,3.4632]
[1722427521164,2.4038,3327.4,3326.8,1.109]
[1722427521396,3.0,3327.4,3326.8,1.109]
[1722427522689,6.00535,3327.4,3326.8,1.109]
[1722427523349,3.00545,3327.3,3326.8,1.109]
[1722427524097,3.00553,3327.2,3326.8,1.109]
[1722427525102,3.00562,3327.1,3326.8,1.109]
[1722427525318,3.00572,3327.0,3326.8,1.109]
[1722427526408,6.01151,3327.0,3326.8,1.109]
[1722427527218,3.0058,3326.9,3326.8,1.109]
[1722427531501,3.00572,3327.0,3326.8,1.109]
[1722427531701,6.01151,3327.0,3326.8,1.109]
[1722427532001,3.0058,3326.9,3326.8,1.109]
[1722427540248,3.00571,3327.0,3326.8,3.4519]
[1722427540562,3.0058,3326.9,3326.8,3.4519]
[1722427544251,3.0058,3326.9,3326.8,3.50067253]
[1722427544452,3.0058,3326.9,3326.8,3.4519]
[1722427544672,3.0058,3326.9,3326.8,3.50067253]
[1722427544972,3.0058,3326.9,3326.8,1.15777253]
[1722427546272,5.61586223,3326.9,3326.8,1.15777253]
[1722427547271,3.0058,3326.9,3326.8,1.15777253]
[1722427547431,5.62006737,3326.9,3326.8,1.15777253]
[1722427550651,5.62012538,3326.9,3326.8,1.15777253]
[1722427550845,5.62012538,3326.9,3326.8,1.35777253]
[1722427551345,5.62012538,3326.9,3326.8,1.309]
[1722427551687,5.62013865,3326.9,3326.8,1.309]
[1722427552735,6.0116,3326.9,3326.8,1.309]
[1722427552937,6.61276,3326.9,3326.8,1.309]
[1722427553383,6.61276,3326.9,3326.8,0.2]
[1722427553981,6.61276,3326.9,3326.8,0.24871365]
[1722427554452,5.62012307,3326.9,3326.8,0.24871365]
[1722427554635,3.0058,3326.9,3326.8,0.24871365]
[1722427554830,3.0058,3326.9,3326.8,0.44871365]
[1722427555078,3.0058,3326.9,3326.8,1.55771365]
[1722427557574,6.0116,3326.9,3326.8,1.55771365]
[1722427558976,6.0116,3326.9,3326.8,1.75771365]
[1722427559580,6.0116,3326.9,3326.8,0.64871365]
[1722427561588,6.0116,3326.9,3326.8,0.6]
[1722427562700,3.0058,3326.9,3326.8,1.709]
[1722427562871,2.61475093,3326.9,3326.8,4.12551759]
[1722427563049,2.61475093,3326.9,3326.8,4.32551759]
[1722427563763,3.00555,3327.2,3326.8,4.32551759]
[1722427564109,3.00555,3327.2,3327.1,1.109]
[1722427564816,3.00555,3327.2,3327.1,1.15771759]
[1722427565272,9.13339051,3327.4,3327.1,1.15771759]
[1722427565472,2.61396606,3327.2,3327.1,1.109]
[1722427567302,2.61366228,3327.2,3327.1,1.109]
[1722427567510,5.61919228,3327.2,3327.1,1.109]
[1722427568105,2.61366228,3327.3,3327.1,1.109]
[1722427568298,2.61366228,3327.2,3327.1,1.109]
[1722427568451,3.00549,3327.3,3327.1,1.109]
[1722427568655,2.61319874,3327.3,3327.1,1.109]
[1722427568850,2.60360811,3328.2,3327.1,1.109]
[1722427568851,2.61319874,3327.4,3327.1,1.109]
[1722427569104,2.61319874,3327.4,3327.3,1.109]
[1722427569402,3.00531,3327.5,3327.3,1.109]
[1722427572296,3.00512,3327.7,3327.3,1.109]
[1722427572456,3.00512,3327.7,3327.6,1.109]
[1722427575698,3.00512,3327.7,3327.4,36.109]
[1722427575911,3.00525,3327.5,3327.4,36.109]
[1722427576202,3.00525,3327.5,3327.4,1.109]
[1722427576203,6.0105,3327.5,3327.4,1.109]
[1722427576364,3.00562,3327.1,3326.9,2.4814]
[1722427576563,3.00562,3327.1,3327.0,1.15747435]
[1722427576808,3.00562,3327.1,3327.0,36.15747435]
[1722427577109,3.00552,3327.3,3327.0,36.15747435]
[1722427577262,3.00552,3327.3,3327.2,1.109]
[1722427577690,3.00552,3327.3,3327.2,1.15747435]
[1722427580270,3.00552,3327.3,3327.2,36.15747435]
[1722427581014,6.01102,3327.3,3327.2,36.15747435]
[1722427581672,6.01102,3327.3,3327.2,1.15747435]
[1722427581972,6.01102,3327.3,3327.2,1.109]
[1722427582173,6.01102,3327.3,3326.8,1.0]
[1722427582174,3.00562,3327.1,3327.0,1.109]
[1722427582378,3.00571,3327.0,3326.9,35.0]
[1722427584411,3.00562,3327.1,3326.9,35.0]
[1722427584614,3.00562,3327.1,3327.0,1.109]
[1722427586085,3.00562,3327.1,3327.0,36.109]
[1722427587226,3.00546,3327.3,3327.0,36.109]
[1722427587518,3.00555,3327.2,3327.0,35.0]
[1722427588150,6.01114,3327.2,3327.0,35.0]
[1722427588357,3.00555,3327.2,3327.0,35.0]
[1722427589067,3.00555,3327.2,3326.8,1.0]
[1722427589354,3.00555,3327.2,3327.1,1.109]
[1722427591759,3.00555,3327.2,3327.1,1.15738412]
[1722427596071,6.01114,3327.2,3327.1,1.15738412]
[1722427597570,6.01114,3327.2,3327.1,1.35738412]
[1722427598448,3.00555,3327.2,3327.1,1.35738412]
[1722427600133,5.61477104,3327.5,3327.2,2.3243]
[1722427600329,3.00526,3327.5,3327.3,1.109]
[1722427600646,3.00526,3327.5,3327.3,1.15743512]
[1722427601052,3.00526,3327.5,3327.4,35.0]
[1722427601242,3.00534,3327.4,3327.3,1.109]
[1722427601673,3.00534,3327.4,3327.3,1.15743512]
[1722427601878,3.00534,3327.4,3327.3,36.15743512]
[1722427602174,3.00534,3327.4,3327.3,1.15743512]
[1722427603552,6.01068,3327.4,3327.3,1.15743512]
[1722427603974,6.01068,3327.4,3327.3,1.109]
[1722427604552,6.01068,3327.4,3327.3,1.15743512]
[1722427605192,8.62091572,3327.4,3327.3,0.04843512]
[1722427605366,12.291598,3327.4,3327.3,0.04843512]
[1722427605570,6.01106,3327.2,3327.1,0.4]
[1722427605867,8.62207577,3327.2,3327.1,0.6]
[1722427606392,8.62207577,3327.2,3327.1,0.64838805]
[1722427606755,6.01106,3327.2,3327.1,0.64838805]
[1722427606994,8.62224681,3327.2,3327.1,0.64838805]
[1722427607289,6.01106,3327.2,3327.1,0.64838805]
[1722427608050,6.01106,3327.2,3327.1,0.6]
[1722427608653,6.01106,3327.2,3327.1,0.64838805]
[1722427609594,8.62249445,3327.2,3327.1,0.64838805]
[1722427609904,6.01106,3327.2,3327.1,0.84838805]
[1722427610411,8.62238486,3327.2,3327.1,0.84838805]
[1722427610911,6.01106,3327.2,3327.1,0.84838805]
[1722427611301,8.62229168,3327.2,3327.1,0.84838805]
[1722427613266,6.01106,3327.2,3327.1,0.84838805]
[1722427613586,8.62214921,3327.2,3327.1,0.84838805]
[1722427613893,8.62214921,3327.2,3327.1,1.04838805]
[1722427613894,6.01106,3327.2,3327.1,1.04838805]
[1722427615184,8.62214921,3327.2,3327.1,1.04838805]
[1722427616005,12.93601702,3327.2,3327.1,1.04838805]
[1722427616204,15.61505781,3327.2,3327.1,1.04838805]
[1722427616376,15.61505781,3327.2,3327.1,1.0]
[1722427616700,18.61505781,3327.2,3327.1,1.0]
[1722427619615,19.72405781,3327.2,3327.1,1.0]
[1722427620112,22.72958781,3327.2,3327.1,0.48147666]
[1722427621003,3.00686,3325.8,3325.7,1.109]
[1722427621368,3.00686,3325.8,3325.7,1.15463941]
[1722427621699,3.00686,3325.8,3325.7,1.109]
[1722427621950,3.0069,3325.7,3325.3,2.2832]
[1722427622066,3.00715,3325.5,3325.4,1.109]
[1722427625019,5.2141824,3325.9,3325.4,1.109]
[1722427625187,3.0068,3325.8,3325.6,1.109]
[1722427625611,5.2140024,3326.1,3325.6,1.109]
[1722427625612,3.00671,3325.9,3325.6,1.109]
[1722427625806,3.00682,3325.8,3325.6,1.109]
[1722427626295,3.00688,3325.7,3325.6,1.109]
[1722427628138,6.01376,3325.7,3325.6,1.109]
[1722427628508,6.01376,3325.7,3325.3,2.2832]
[1722427628509,3.00709,3325.5,3325.4,1.109]
[1722427630608,3.00688,3325.7,3325.4,1.109]
[1722427630833,3.00688,3325.7,3325.6,1.109]
[1722427635733,3.00702,3325.6,3325.4,36.109]
[1722427636799,3.00702,3325.6,3325.5,0.04619672]
[1722427640293,3.00679,3325.8,3325.5,0.04619672]
[1722427640500,3.00679,3325.8,3325.6,1.109]
[1722427641168,3.00679,3325.8,3325.7,0.04619672]
[1722427641605,3.00688,3325.7,3325.6,1.109]
[1722427642157,6.01376,3325.7,3325.6,1.109]
[1722427642357,3.00706,3325.5,3325.4,36.109]
[1722427644091,3.00692,3325.7,3325.5,0.2]
[1722427644400,3.00692,3325.7,3325.6,1.109]
[1722427646500,12.06734462,3326.3,3325.6,4.15801288]
[1722427646661,3.00678,3325.9,3325.8,1.109]
[1722427647397,2.20124462,3326.2,3325.8,1.109]
[1722427647566,10.48635,3326.3,3326.1,1.109]
[1722427647765,7.48,3326.3,3326.1,1.109]
[1722427647966,7.48,3326.3,3326.2,2.469]
[1722427648198,7.48,3326.3,3326.2,2.5154794]
[1722427649228,10.48634,3326.3,3326.2,2.5154794]
[1722427649735,3.00634,3326.3,3326.2,2.5154794]
[1722427649856,3.00619,3326.5,3326.2,2.5154794]
[1722427650059,3.00603,3326.7,3326.3,1.109]
[1722427650259,3.00617,3326.5,3326.3,1.109]
[1722427650583,3.00608,3326.6,3326.4,0.0464794]
[1722427650760,3.00616,3326.5,3326.4,1.1554794]
[1722427651275,3.00616,3326.5,3326.4,0.0464794]
[1722427651601,3.00594,3326.8,3326.4,1.109]
[1722427651798,3.00594,3326.8,3326.4,1.1554794]
[1722427651799,3.00611,3326.6,3326.4,1.1554794]
[1722427651956,3.00611,3326.6,3326.4,1.109]
[1722427652162,3.00611,3326.6,3326.5,0.0464794]
[1722427653103,6.01222,3326.6,3326.5,0.0464794]
[1722427653590,3.00625,3326.4,3326.2,1.109]
[1722427653795,3.00634,3326.3,3326.2,1.109]
[1722427653994,3.00625,3326.4,3326.2,1.109]
[1722427658258,3.00612,3326.6,3326.2,1.109]
[1722427658474,3.00612,3326.6,3326.4,1.109]
[1722427660579,3.00612,3326.6,3326.5,0.2]
[1722427660781,5.21177395,3326.7,3326.5,0.2]
[1722427661159,3.00607,3326.6,3326.5,0.2]
[1722427661360,5.21184395,3326.6,3326.5,0.2]
[1722427662808,5.21290689,3326.6,3326.5,0.2]
[1722427665562,9.04085658,3326.6,3326.5,0.2]
[1722427665767,9.24081969,3326.6,3326.5,0.2]
[1722427665967,11.44774747,3326.6,3326.5,0.2]
[1722427666713,11.44774747,3326.6,3326.5,0.24627916]
[1722427667086,11.44774747,3326.6,3326.5,0.2]
[1722427667288,9.24081969,3326.6,3326.5,0.2]
[1722427669103,9.24081969,3326.6,3326.5,0.24627916]
[1722427669308,6.83401969,3326.6,3326.5,0.24627916]
[1722427669803,9.04084432,3326.6,3326.5,0.24627916]
[1722427670320,9.04094869,3326.6,3326.5,0.2]
[1722427670797,5.212999,3326.6,3326.5,0.2]
[1722427671115,5.212999,3326.6,3326.5,0.24627916]
[1722427672291,2.206929,3326.6,3326.5,0.24627916]
[1722427672493,3.00593,3326.8,3326.5,0.24627916]
[1722427672494,2.20685144,3326.7,3326.5,0.24627916]
[1722427673281,3.00598,3326.7,3326.5,0.24627916]
[1722427673507,5.21283144,3326.7,3326.5,0.24627916]
[1722427674304,3.00607,3326.6,3326.5,0.24627916]
[1722427675296,5.21280897,3326.6,3326.5,0.24627916]
[1722427675710,2.20673897,3326.6,3326.5,0.24627916]
[1722427675911,2.20680806,3326.7,3326.5,0.24627916]
[1722427676086,2.20680806,3326.7,3326.5,0.2]
[1722427676608,5.21279806,3326.7,3326.5,0.2]
[1722427676994,5.21279806,3326.7,3326.6,0.04608679]
[1722427677295,3.00599,3326.7,3326.6,0.04608679]
[1722427678724,3.00599,3326.7,3326.5,0.2]
[1722427678898,2.20705213,3326.6,3326.5,0.2]
[1722427679101,3.00589,3326.8,3326.5,0.24606719]
[1722427679298,5.21294012,3326.8,3326.6,1.109]
[1722427679606,2.20705012,3326.8,3326.7,0.04603187]
[1722427680520,4.295686,3326.9,3326.7,0.04603187]
[1722427680714,4.295686,3326.9,3326.6,1.109]
[1722427680887,2.20711163,3326.7,3326.6,1.109]
[1722427682400,2.20741179,3326.7,3326.6,1.109]
[1722427682736,2.20742542,3326.7,3326.6,1.109]
[1722427684905,2.20742542,3326.7,3326.6,1.15499262]
[1722427685477,2.20742542,3326.7,3326.6,1.109]
[1722427685617,3.0059,3326.8,3326.6,1.109]
[1722427685820,2.20807166,3326.7,3326.6,1.109]
[1722427687412,3.0059,3326.8,3326.6,1.109]
[1722427690247,2.60992722,3326.9,3326.6,1.109]
[1722427690458,2.60992722,3326.9,3326.8,1.109]
[1722427690459,2.20955199,3326.9,3326.8,1.109]
[1722427690762,2.20955199,3327.0,3326.8,1.109]
[1722427690953,2.20955199,3327.1,3326.9,1.109]
[1722427691243,2.20955199,3327.1,3327.0,1.109]
[1722427691402,2.20955199,3327.1,3327.0,1.15485915]
[1722427693249,5.61536722,3327.3,3327.0,1.15485915]
[1722427693445,2.21007776,3327.1,3327.0,1.15485915]
[1722427694251,8.62086722,3327.3,3327.0,1.15485915]
[1722427694467,5.61536722,3327.3,3327.0,1.15485915]
[1722427694754,2.20985885,3327.1,3327.0,1.15485915]
[1722427695925,3.00553,3327.2,3327.0,1.15485915]
[1722427696258,2.20952513,3327.1,3327.0,1.15485915]
[1722427697464,2.20952513,3327.2,3327.0,1.15485915]
[1722427699211,2.20865275,3327.2,3327.0,1.15485915]
[1722427701028,2.20865275,3327.3,3327.0,1.15485915]
[1722427701357,2.20865275,3327.3,3327.2,1.109]
[1722427701727,2.20865275,3327.3,3327.2,1.15441183]
[1722427702558,3.00535,3327.4,3327.2,1.15441183]
[1722427702721,2.20785823,3327.3,3327.2,1.15441183]
[1722427703164,2.20785823,3327.4,3327.2,1.15441183]
[1722427703527,2.20752203,3327.5,3327.2,1.15441183]
[1722427704026,2.20752203,3327.5,3327.4,1.109]
[1722427705968,2.20696024,3327.5,3327.4,1.109]
[1722427706470,5.21213024,3327.6,3327.4,1.109]
[1722427706824,3.00525,3327.5,3327.4,1.109]
[1722427707021,3.00525,3327.5,3327.2,1.109]
[1722427707624,3.00525,3327.5,3327.3,0.04541183]
[1722427707930,3.00525,3327.5,3327.2,1.109]
[1722427708131,3.00525,3327.5,3327.3,0.04541183]
[1722427708469,3.00525,3327.5,3327.2,1.109]
[1722427709489,3.00525,3327.5,3327.3,0.04541183]
[1722427709773,3.00525,3327.5,3327.2,1.109]
[1722427710080,3.00525,3327.5,3327.4,0.04541183]
[1722427710234,3.00525,3327.5,3327.2,1.109]
[1722427710429,3.00525,3327.5,3327.4,0.04541183]
[1722427710630,3.00525,3327.5,3327.2,1.109]
[1722427710979,3.00525,3327.5,3327.3,0.04532159]
[1722427711380,3.00525,3327.5,3327.2,1.109]
[1722427711535,3.00525,3327.5,3327.4,0.04532159]
[1722427711735,3.00525,3327.5,3327.2,1.109]
[1722427711940,3.00525,3327.5,3327.3,0.04532159]
[1722427712182,6.01057,3327.5,3327.2,1.109]
[1722427712363,6.01057,3327.5,3327.4,0.04532159]
[1722427712564,3.00543,3327.3,3327.2,1.109]
[1722427712941,3.00543,3327.3,3327.2,1.15432159]
[1722427713591,6.01086,3327.3,3327.2,0.04532159]
[1722427713885,6.01086,3327.3,3327.0,0.4]
[1722427714062,3.00562,3327.1,3327.0,0.4]
[1722427716892,3.00562,3327.1,3327.0,35.4]
[1722427721462,6.01124,3327.1,3327.0,35.4]
[1722427722987,8.21901945,3327.1,3327.0,35.4]
[1722427723233,6.01124,3327.1,3327.0,35.4]
[1722427723438,6.01124,3327.1,3327.0,0.4]
[1722427723578,7.40801395,3327.1,3327.0,0.4]
[1722427723923,13.02157343,3327.1,3327.0,0.4]
[1722427724096,12.67183395,3327.1,3327.0,0.4]
[1722427724795,15.80314466,3327.1,3327.0,0.4]
[1722427724999,12.67183395,3327.1,3327.0,0.4]
[1722427725205,15.80314466,3327.1,3327.0,0.4]
[1722427726496,12.67183395,3327.1,3327.0,0.4]
[1722427726834,15.80314466,3327.1,3327.0,0.4]
[1722427727617,12.67183395,3327.1,3327.0,0.4]
[1722427728400,15.80314466,3327.1,3327.0,0.4]
[1722427728605,12.67183395,3327.1,3327.0,0.4]
[1722427728838,15.80314466,3327.1,3327.0,0.4]
[1722427729225,12.67183395,3327.1,3327.0,0.4]
[1722427729426,18.80876466,3327.1,3327.0,0.4]
[1722427729746,14.49452,3326.7,3326.6,0.6]
[1722427730033,18.60352,3326.7,3326.6,0.6]
[1722427730528,21.7322174,3326.7,3326.6,0.6]
[1722427731646,18.60352,3326.7,3326.6,0.6]
[1722427733603,18.60352,3326.7,3326.6,0.6455845]
[1722427733808,20.77674174,3326.7,3326.6,0.6455845]
[1722427736424,17.77076174,3326.7,3326.6,0.6]
[1722427737119,20.77674174,3326.7,3326.6,0.6]
[1722427737434,17.77076174,3326.7,3326.6,0.6]
[1722427737756,3.00679,3325.8,3325.7,35.0]
[1722427738054,3.00679,3325.8,3325.7,36.109]
[1722427738299,3.00679,3325.8,3325.7,36.15507504]
[1722427738479,3.00657,3326.1,3325.8,2.3711]
[1722427738679,3.00664,3326.0,3325.9,1.109]
[1722427739085,3.00664,3326.0,3325.9,1.15507504]
[1722427741012,3.00664,3326.0,3325.9,1.88666916]
[1722427742206,3.00664,3326.0,3325.9,1.15507504]
[1722427742503,3.00664,3326.0,3325.9,36.15507504]
[1722427743085,6.01299,3326.2,3325.9,36.15507504]
[1722427743413,3.00628,3326.4,3326.2,2.287]
[1722427743576,3.00628,3326.4,3326.3,1.109]
[1722427743898,3.00628,3326.4,3326.3,1.15507504]
[1722427744268,7.48,3326.5,3326.3,1.49928254]
[1722427744467,3.00612,3326.6,3326.3,1.49928254]
[1722427744698,3.00612,3326.6,3326.5,1.109]
[1722427745359,3.00612,3326.6,3326.5,1.15507504]
[1722427747091,3.00594,3326.8,3326.5,1.15507504]
[1722427747400,3.00583,3326.9,3326.6,2.3551]
[1722427747599,3.00583,3326.9,3326.7,1.109]
[1722427748011,3.00583,3326.9,3326.8,0.04593767]
[1722427748381,3.00583,3326.9,3326.7,1.109]
[1722427748600,3.00583,3326.9,3326.8,0.04593767]
[1722427748920,3.00583,3326.9,3326.7,1.109]
[1722427749217,3.00583,3326.9,3326.8,0.04593767]
[1722427749385,3.00583,3326.9,3326.7,1.109]
[1722427749565,3.00583,3326.9,3326.8,0.04593767]
[1722427749893,3.00583,3326.9,3326.7,1.109]
[1722427750102,3.00589,3326.8,3326.7,1.109]
[1722427751383,3.00583,3326.9,3326.7,1.109]
[1722427752014,3.00576,3327.0,3326.7,1.45541]
[1722427752767,3.00576,3327.0,3326.7,36.45541]
[1722427752998,3.00563,3327.1,3326.9,1.109]
[1722427753246,3.00571,3327.0,3326.9,1.109]
[1722427754206,6.01142,3327.0,3326.9,1.109]
[1722427754392,3.00571,3327.0,3326.9,1.109]
[1722427755514,10.48558,3327.2,3326.9,1.109]
[1722427755515,7.48,3327.2,3326.9,1.109]
[1722427755726,3.00553,3327.2,3326.9,1.109]
[1722427756009,6.01083,3327.4,3327.0,2.3692]
[1722427756224,3.00545,3327.3,3327.1,1.109]
[1722427756511,3.00553,3327.2,3327.1,1.109]
[1722427763125,3.00553,3327.2,3326.9,1.109]
[1722427763291,3.00571,3327.0,3326.9,1.109]
[1722427763704,3.00553,3327.2,3326.9,1.109]
[1722427764213,3.00548,3327.3,3326.9,1.109]
[1722427764420,3.00558,3327.2,3327.1,1.109]
[1722427764624,3.00563,3327.1,3326.9,1.109]
[1722427765029,6.01133,3327.1,3326.9,1.109]
[1722427765530,3.00563,3327.1,3326.9,1.109]
[1722427765687,3.00571,3327.0,3326.9,1.109]
[1722427765897,3.00589,3326.8,3326.7,1.109]
[1722427771631,3.00589,3326.8,3326.7,1.15318766]
[1722427776614,3.00571,3327.0,3326.7,1.15318766]
[1722427776833,3.00581,3326.9,3326.7,1.15318766]
[1722427777652,3.00558,3327.2,3326.7,1.15318766]
[1722427777852,3.00558,3327.2,3326.9,3.5098]
[1722427778366,3.00558,3327.2,3327.0,0.04418766]
[1722427778723,3.00558,3327.2,3326.9,3.5098]
[1722427778922,3.00558,3327.2,3327.1,0.0441602]
[1722427779124,3.00558,3327.2,3326.9,3.5098]
[1722427779338,3.00558,3327.2,3327.1,0.0441602]
[1722427779525,3.00558,3327.2,3326.9,3.5098]
[1722427779740,3.00558,3327.2,3327.1,0.0441602]
[1722427780085,3.00558,3327.2,3327.1,1.1531602]
[1722427781640,8.21601789,3327.4,3327.1,1.1531602]
[1722427781835,3.00539,3327.4,3327.1,1.1531602]
[1722427782081,5.21108854,3327.4,3327.1,1.1531602]
[1722427782579,3.00539,3327.4,3327.1,1.1531602]
[1722427782791,3.00549,3327.3,3327.1,1.1531602]
[1722427782947,3.00553,3327.2,3327.1,1.1531602]
[1722427783870,3.00553,3327.2,3327.1,0.0441602]
[1722427784065,3.00571,3327.0,3326.7,1.109]
[1722427784458,3.00571,3327.0,3326.7,1.309]
[1722427784644,3.00571,3327.0,3326.8,35.0]
[1722427785358,3.00562,3327.1,3326.8,35.0]
[1722427785741,3.00562,3327.1,3326.9,2.4711]
[1722427786154,3.00562,3327.1,3326.9,3.5801]
[1722427786741,3.00562,3327.1,3327.0,0.0441602]
[1722427787185,3.00562,3327.1,3326.9,3.5801]
[1722427787389,3.00562,3327.1,3327.0,0.0441602]
[1722427787769,3.00562,3327.1,3326.9,3.5801]
[1722427787973,3.00562,3327.1,3327.0,0.0441602]
[1722427788277,3.00562,3327.1,3326.9,38.5801]
[1722427788483,3.00562,3327.1,3327.0,0.0441602]
[1722427788673,3.00562,3327.1,3326.9,38.5801]
[1722427788845,3.00562,3327.1,3327.0,0.0441602]
[1722427789039,3.00562,3327.1,3326.9,38.5801]
[1722427789283,5.2145231,3327.1,3327.0,0.0441602]
[1722427789490,5.2145231,3327.1,3326.9,38.5801]
[1722427789690,5.2145231,3327.1,3327.0,0.04413273]
[1722427789845,5.2145231,3327.1,3326.9,38.5801]
[1722427790045,5.2145231,3327.1,3327.0,0.04413273]
[1722427790257,5.2145231,3327.1,3326.9,38.5801]
[1722427790458,5.2145231,3327.1,3327.0,0.04413273]
[1722427790761,5.2145231,3327.1,3326.9,38.5801]
[1722427790762,5.21560553,3327.1,3326.9,38.5801]
[1722427790969,5.21560553,3327.1,3327.0,0.04413273]
[1722427791376,6.0113,3327.1,3326.9,36.109]
[1722427791576,6.0113,3327.1,3327.0,0.04413273]
[1722427791771,3.00562,3327.1,3327.0,0.04413273]
[1722427791978,3.00562,3327.1,3326.9,36.109]
[1722427792282,3.00562,3327.1,3327.0,0.04413273]
[1722427792469,6.0113,3327.1,3326.9,36.109]
[1722427792656,2.21080323,3327.0,3326.9,36.109]